lending/lending_fUSD_20240120
["ID","MTS","AMOUNT","RATE_DAILY","PERIOD"]
[312290224,1705746645006,-500.0,0.00025818,2]
[312290225,1705746645017,-500.0,0.00025818,2]
[312290226,1705746645027,-500.0,0.00025818,2]
[312290227,1705746645038,-873.0,0.00025818,2]
[312290228,1705746645048,-648.47,0.00025818,2]
[312290229,1705746645058,-500.0,0.00025818,2]
[312290230,1705746645069,-3839.64,0.00025818,2]
[312290231,1705746645083,-500.0,0.00025818,2]
[312290232,1705746645093,-500.0,0.00025818,2]
[312290233,1705746645103,-431.72526961,0.00025819,2]
[312290234,1705746645113,-500.0,0.00025819,2]
[312290235,1705746645123,-500.0,0.00025819,2]
[312290236,1705746645133,-500.0,0.00025819,2]
[312290237,1705746645144,-250.0,0.00025819,2]
[312290238,1705746645155,-489.41,0.00025819,2]
[312290239,1705746645165,-505.89728767,0.00025819,2]
[312290240,1705746645175,-500.0,0.00025819,2]
[312290241,1705746645185,-500.0,0.00025819,2]
[312290242,1705746645195,-500.0,0.00025819,2]
[312290243,1705746645206,-523.95277485,0.00025819,2]
[312290244,1705746645217,-500.0,0.00025819,2]
[312290245,1705746645226,-500.0,0.00025819,2]
[312290246,1705746645237,-374.85,0.00025819,2]
[312290247,1705746645247,-500.0,0.00025819,2]
[312290248,1705746645257,-838.55,0.00025819,2]
[312290249,1705746645267,-295.31,0.00025819,2]
[312290250,1705746645277,-575.23,0.00025819,2]
[312290251,1705746645287,-500.0,0.00025819,2]
[312290252,1705746645297,-500.0,0.00025819,2]
[312290253,1705746645307,-500.0,0.00025819,2]
[312290254,1705746645317,-500.0,0.00025819,2]
[312290255,1705746645328,-500.0,0.00025819,2]
[312290256,1705746645338,-500.0,0.00025819,2]
[312290257,1705746645349,-480.64374084,0.00025819,2]
[312290258,1705746645360,-339.66385979,0.00025819,2]
[312290259,1705746645370,-150.12637404,0.00025819,2]
[312290260,1705746645380,-500.0,0.00025819,2]
[312290261,1705746645391,-500.0,0.00025819,2]
[312290262,1705746645401,-500.0,0.00025819,2]
[312290263,1705746645411,-3.01274506,0.00025819,2]
[312290264,1705746645426,-266.90783496,0.00025819,2]
[312290265,1705746645562,-500.0,0.00025817,2]
[312290266,1705746645572,-230.07941998,0.00025819,2]
[312290267,1705746645583,-500.0,0.00025819,2]
[312290269,1705746645904,-63.31385903,0.00025819,2]
[312290270,1705746646033,-436.68614097,0.00025819,2]
[312290271,1705746646042,-504.65230878,0.00025819,2]
[312290272,1705746646152,-1238.2,0.00025819,2]
[312290296,1705747832045,-221.15744731,0.0002233,2]
[312290297,1705747832057,-355.1674584,0.00022331,2]
[312290298,1705747832100,-57.25321547,0.00022331,2]
[312290299,1705747832109,-371.5,0.00022336,2]
[312290300,1705747832119,-711.66,0.00023398,2]
[312290301,1705747832129,-704.58678453,0.00023642,2]
[312290302,1705747832158,-399.2023011,0.00023642,2]
[312290303,1705747832170,-558.52308031,0.00023642,2]
[312290304,1705747832182,-929.19553406,0.00023642,2]
[312290305,1705747832192,-718.2,0.00023742,2]
[312290306,1705747832204,-846.08,0.00024168,2]
[312290307,1705747832213,-3202.38448337,0.00024168,2]
[312290308,1705747832230,-3160.67274254,0.00024168,2]
[312290309,1705747832243,-250.0,0.00024168,2]
[312290310,1705747832255,-567.0516138,0.00024168,2]
[312290311,1705747832267,-1100.0,0.00024168,2]
[312290312,1705747832298,-2277.7,0.00024168,2]
[312290313,1705747832340,-525.40240982,0.00024168,2]
[312290314,1705747832352,-2574.04524832,0.00024168,2]
[312290315,1705747832363,-11607.79260859,0.00024168,2]
[312290374,1705747838132,-682.73162017,0.00024168,2]
[312290375,1705747838195,-638.89389986,0.00024168,2]
[312290376,1705747838209,-2238.9233072,0.00024168,2]
[312290377,1705747838299,-1335.6738995,0.00024168,2]
[312290378,1705747838313,-2103.3787534,0.00024168,2]
[312290379,1705747838355,-1704.77468899,0.00024168,2]
[312290380,1705747838368,-2876.05948541,0.00024168,2]
[312290381,1705747838413,-1545.65765253,0.00024168,2]
[312290382,1705747838481,-979.31412629,0.00024168,2]
[312290383,1705747838498,-5526.79899782,0.00024168,2]
[312290397,1705747841420,-2472.63613187,0.00024168,2]
[312290398,1705747841431,-150.0,0.00024169,2]
[312290399,1705747841441,-150.0,0.00024169,2]
[312290401,1705747841451,-1000.0,0.0002417,2]
[312290403,1705747841462,-5360.14,0.00024303,2]
[312290404,1705747841474,-2000.0,0.00024327,2]
[312290405,1705747841484,-1391.14,0.00024327,2]
[312290406,1705747841494,-150.99,0.00024327,2]
[312290407,1705747841505,-206.0,0.00024409,2]
[312290408,1705747841516,-220.33,0.00024422,2]
[312290409,1705747841526,-164.58349255,0.00024448,2]
[312290410,1705747841537,-226.2,0.00024548,2]
[312290411,1705747841548,-371.5,0.000246,2]
[312290412,1705747841559,-250.0,0.00024658,2]
[312290413,1705747841569,-166.66,0.00024697,2]
[312290414,1705747841578,-22125.0,0.000248,2]
[312290415,1705747841588,-2649.0,0.000248,2]
[312290416,1705747841599,-159.95,0.00024867,2]
[312290417,1705747841609,-2082.16926263,0.00024899,2]
[312290418,1705747841623,-271.24536871,0.00024899,2]
[312290419,1705747841635,-573.87796866,0.00024899,2]
[312290420,1705747841646,-4695.32009176,0.00024998,2]
[312290421,1705747841656,-846.08,0.00025062,2]
[312290422,1705747841666,-19343.93823364,0.00025113,2]
[312290423,1705747841676,-26180.2836524,0.00025113,2]
[312290424,1705747841687,-14973.83772462,0.00025113,2]
[312290425,1705747841697,-156.86,0.00025203,2]
[312290426,1705747841708,-164.58349255,0.0002525,2]
[312290427,1705747841718,-159.95,0.00025364,2]
[312290428,1705747841728,-1250.96,0.00025443,2]
[312290429,1705747841739,-150.0,0.00025483,2]
[312290430,1705747841749,-835.0,0.00025508,2]
[312290431,1705747841760,-1257.0,0.00025508,2]
[312290432,1705747841771,-1234.0,0.00025508,2]
[312290433,1705747841782,-1934.0,0.00025508,2]
[312290434,1705747841792,-319.0,0.00025508,2]
[312290435,1705747841802,-4175.0,0.00025508,2]
[312290436,1705747841813,-8097.0,0.00025508,2]
[312290437,1705747841824,-5578.0,0.00025508,2]
[312290438,1705747841834,-2904.0,0.00025508,2]
[312290439,1705747841844,-2272.0,0.00025508,2]
[312290440,1705747841855,-19705.0,0.00025508,2]
[312290441,1705747841866,-7353.0,0.00025508,2]
[312290442,1705747841876,-1029.0,0.00025508,2]
[312290443,1705747841887,-150.0,0.00025508,2]
[312290444,1705747841898,-762.72,0.00025543,2]
[312290445,1705747841908,-289.33423861,0.00025544,2]
[312290446,1705747841918,-250.0,0.00025544,2]
[312290447,1705747841928,-500.0,0.00025544,2]
[312290448,1705747841938,-500.0,0.00025544,2]
[312290449,1705747841949,-500.0,0.00025544,2]
[312290450,1705747841960,-500.0,0.00025544,2]
[312290451,1705747841970,-500.0,0.00025544,2]
[312290452,1705747841980,-500.0,0.00025544,2]
[312290453,1705747841990,-500.0,0.00025544,2]
[312290454,1705747842001,-500.0,0.00025544,2]
[312290455,1705747842011,-500.0,0.00025544,2]
[312290456,1705747842021,-500.0,0.00025544,2]
[312290457,1705747842032,-500.0,0.00025544,2]
[312290458,1705747842042,-500.0,0.00025544,2]
[312290459,1705747842053,-500.0,0.00025544,2]
[312290460,1705747842064,-500.0,0.00025544,2]
[312290461,1705747842074,-500.0,0.00025544,2]
[312290462,1705747842085,-500.0,0.00025544,2]
[312290463,1705747842095,-500.0,0.00025544,2]
[312290464,1705747842106,-500.0,0.00025544,2]
[312290465,1705747842116,-507.91515946,0.00025544,2]
[312290466,1705747842127,-500.0,0.00025544,2]
[312290467,1705747842137,-500.0,0.00025544,2]
[312290468,1705747842147,-506.25985988,0.00025544,2]
[312290469,1705747842157,-500.0,0.00025544,2]
[312290470,1705747842167,-500.0,0.00025544,2]
[312290471,1705747842177,-500.0,0.00025544,2]
[312290472,1705747842188,-500.0,0.00025544,2]
[312290473,1705747842198,-500.0,0.00025544,2]
[312290474,1705747842209,-500.0,0.00025544,2]
[312290475,1705747842219,-150.0,0.00025575,10]
[312290476,1705747842230,-200.0,0.00025612,2]
[312290477,1705747842243,-800.0,0.00025612,2]
[312290478,1705747842254,-200.0,0.00025612,2]
[312290479,1705747842266,-800.0,0.00025612,2]
[312290480,1705747842276,-200.0,0.00025612,2]
[312290481,1705747842287,-2613.33619087,0.00025817,5]
[312290482,1705747842298,-762.72,0.00025817,2]
[312290483,1705747842310,-1599.38,0.00025817,2]
[312290484,1705747842320,-618.98,0.00025817,2]
[312290485,1705747842331,-3095.64,0.00025817,2]
[312290486,1705747842341,-500.0,0.00025817,2]
[312290487,1705747842352,-500.0,0.00025817,2]
[312290488,1705747842362,-500.0,0.00025817,2]
[312290489,1705747842372,-500.0,0.00025817,2]
[312290490,1705747842383,-500.0,0.00025817,2]
[312290491,1705747842394,-1257.69,0.00025817,2]
[312290492,1705747842404,-1509.56,0.00025817,2]
[312290493,1705747842415,-500.0,0.00025817,2]
[312290494,1705747842426,-3297.48423607,0.00025818,2]
[312290495,1705747842437,-150.01,0.00025818,2]
[312290496,1705747842447,-250.0,0.00025818,2]
[312290497,1705747842458,-378.56915607,0.00025818,2]
[312290498,1705747842468,-500.0,0.00025818,2]
[312290499,1705747842480,-500.0,0.00025818,2]
[312290500,1705747842490,-500.0,0.00025818,2]
[312290501,1705747842500,-500.0,0.00025818,2]
[312290502,1705747842510,-500.0,0.00025818,2]
[312290503,1705747842521,-263.63,0.00025818,2]
[312290504,1705747842531,-500.0,0.00025818,2]
[312290505,1705747842540,-500.0,0.00025818,2]
[312290506,1705747842885,-187.85304698,0.00025818,2]
[312290507,1705747842910,-500.0,0.00025818,2]
[312290508,1705747842925,-500.0,0.00025818,2]
[312290509,1705747842935,-500.0,0.00025818,2]
[312290510,1705747842945,-1160.13,0.00025818,2]
[312290511,1705747842954,-500.0,0.00025818,2]
[312290512,1705747842963,-500.0,0.00025818,2]
[312290513,1705747842973,-500.0,0.00025818,2]
[312290514,1705747842982,-500.0,0.00025818,2]
[312290515,1705747842991,-2000.72,0.00025818,2]
[312290516,1705747843003,-500.0,0.00025818,2]
[312290518,1705747843012,-500.0,0.00025818,2]
[312290520,1705747843022,-821.0,0.00025818,2]
[312290522,1705747843031,-500.0,0.00025818,2]
[312290523,1705747843040,-500.0,0.00025818,2]
[312290524,1705747843050,-500.0,0.00025818,2]
[312290525,1705747843059,-500.0,0.00025818,2]
[312290526,1705747843069,-1466.26341923,0.00025819,2]
[312290527,1705747843079,-509.0018593,0.00025819,2]
[312290528,1705747843089,-155.0,0.00025819,2]
[312290529,1705747843099,-200.0,0.00025819,2]
[312290530,1705747843109,-623.77424681,0.00025819,2]
[312290531,1705747843118,-500.0,0.0002582,2]
[312290532,1705747843127,-494.2607926,0.00025829,2]
[312290533,1705747843136,-159.95,0.00025861,2]
[312290534,1705747843146,-846.08,0.00025957,2]
[312290535,1705747843155,-1000.0,0.00026,2]
[312290536,1705747843165,-638.89,0.00026,2]
[312290537,1705747843174,-158.48,0.00026012,2]
[312290538,1705747843183,-758.72176657,0.00026024,2]
[312290539,1705747843192,-500.0,0.00026024,2]
[312290540,1705747843202,-152.06,0.00026024,2]
[312290541,1705747843213,-500.0,0.00026024,2]
[312290542,1705747843223,-372.13858962,0.00026024,2]
[312290543,1705747843234,-500.0,0.00026024,2]
[312290544,1705747843243,-532.70995754,0.00026025,2]
[312290545,1705747843254,-212.86377918,0.00026025,2]
[312290546,1705747843264,-2035.74402954,0.00026025,2]
[312290547,1705747843274,-500.0,0.00026025,2]
[312290548,1705747843284,-500.0,0.00026025,2]
[312290549,1705747843293,-10548.52020323,0.00026026,2]
[312290550,1705747843302,-280.79430241,0.00026026,2]
[312290551,1705747843312,-2320.01311583,0.00026026,2]
[312290552,1705747843322,-164.58349255,0.00026052,2]
[312290553,1705747843331,-1299.94413163,0.00026064,5]
[312290554,1705747843341,-215.48725571,0.00026064,2]
[312290555,1705747843351,-500.0,0.00026087,2]
[312290556,1705747843360,-500.0,0.00026087,2]
[312290557,1705747843369,-500.0,0.00026087,2]
[312290558,1705747843380,-500.0,0.00026087,2]
[312290559,1705747843389,-500.0,0.00026087,2]
[312290560,1705747843398,-500.0,0.00026087,2]
[312290561,1705747843409,-500.0,0.00026087,2]
[312290562,1705747843418,-500.0,0.00026087,2]
[312290563,1705747843427,-500.0,0.00026087,2]
[312290565,1705747843437,-662.57,0.00026087,2]
[312290566,1705747843447,-500.0,0.00026087,2]
[312290567,1705747843457,-347.12194101,0.00026087,2]
[312290568,1705747843468,-825.37,0.00026087,2]
[312290569,1705747843478,-500.0,0.00026087,2]
[312290570,1705747843487,-500.0,0.00026087,2]
[312290571,1705747843498,-3762.65897772,0.00026088,2]
[312290572,1705747843508,-500.0,0.00026088,2]
[312290573,1705747843517,-309.10332702,0.00026088,2]
[312290574,1705747843525,-500.0,0.00026088,2]
[312290575,1705747843536,-500.0,0.00026088,2]
[312290576,1705747843545,-150.0,0.00026088,2]
[312290577,1705747843555,-594.44,0.00026088,2]
[312290578,1705747843564,-3519.67,0.00026088,2]
[312290579,1705747843572,-500.0,0.00026088,2]
[312290580,1705747843581,-500.0,0.00026088,2]
[312290582,1705747843590,-500.0,0.00026088,2]
[312290583,1705747843599,-258.52255662,0.00026088,2]
[312290584,1705747843608,-500.0,0.00026088,2]
[312290585,1705747843617,-500.0,0.00026088,2]
[312290586,1705747843626,-500.0,0.00026088,2]
[312290587,1705747843635,-500.0,0.00026088,2]
[312290588,1705747843644,-500.0,0.00026088,2]
[312290589,1705747843653,-500.0,0.00026088,2]
[312290590,1705747843662,-484.45493162,0.00026088,2]
[312290591,1705747843681,-15.54506838,0.00026088,2]
[312290592,1705747843690,-500.0,0.00026088,2]
[312290593,1705747843699,-500.0,0.00026088,2]
[312290594,1705747843708,-500.0,0.00026088,2]
[312290595,1705747843717,-685.18,0.00026088,2]
[312290596,1705747843727,-500.0,0.00026088,2]
[312290597,1705747843737,-500.0,0.00026088,2]
[312290598,1705747843748,-500.0,0.00026088,2]
[312290599,1705747843759,-500.0,0.00026088,2]
[312290600,1705747843768,-500.0,0.00026088,2]
[312290601,1705747843778,-500.0,0.00026088,2]
[312290602,1705747843788,-500.0,0.00026088,2]
[312290603,1705747843797,-500.0,0.00026088,2]
[312290604,1705747843807,-500.0,0.00026088,2]
[312290605,1705747843816,-357.29225847,0.00026088,2]
[312290658,1705749032277,-334.35,0.00022272,2]
[312290659,1705749032287,-3191.74123019,0.00022998,2]
[312290660,1705749032297,-647.17829278,0.00022999,2]
[312290661,1705749032307,-941.41772909,0.00023,2]
[312290662,1705749032316,-555.07528557,0.00023213,2]
[312290663,1705749032338,-180.50471443,0.00023213,2]
[312290664,1705749032348,-705.59719628,0.00023362,2]
[312290665,1705749032359,-18.15280372,0.00023362,2]
[312290666,1705749032368,-716.49,0.0002369,2]
[312290667,1705749032377,-241.29,0.00023854,2]
[312290668,1705749032387,-200.0,0.00023872,2]
[312290669,1705749032396,-164.58349255,0.00024066,2]
[312290670,1705749032405,-1012.81103656,0.00024166,2]
[312290671,1705749032420,-56.44896344,0.00024166,2]
[312290672,1705749032430,-678.98318654,0.00024166,2]
[312290673,1705749032442,-57.64681346,0.00024166,2]
[312290674,1705749032451,-728.67,0.00024166,2]
[312290675,1705749032460,-131.30318654,0.00024166,2]
[312290676,1705749032471,-448.87925568,0.00024166,2]
[312290677,1705749032483,-135.32755778,0.00024166,2]
[312290678,1705749032492,-183.35,0.00024167,5]
[312290679,1705749032502,-684.61244222,0.00024167,2]
[312290680,1705749032513,-53.59755778,0.00024167,2]
[312290681,1705749032523,-723.81,0.00024167,2]
[312290682,1705749032532,-735.87,0.00024167,2]
[312290683,1705749032541,-713.66,0.00024168,2]
[312290684,1705749032550,-800.0,0.00024227,2]
[312290685,1705749032561,-473.41,0.00024248,2]
[312290686,1705749032570,-721.21,0.00024289,2]
[312290687,1705749032579,-158.44,0.00024526,2]
[312290688,1705749032588,-334.35,0.00024536,2]
[312290689,1705749032597,-250.0,0.00024658,2]
[312290691,1705749032607,-417.10841199,0.00024798,2]
[312290693,1705749032617,-169.32677567,0.00024799,2]
[312290695,1705749032626,-2592.0,0.000248,2]
[312290697,1705749032635,-19913.0,0.000248,2]
[312290699,1705749032644,-158.05,0.00024818,2]
[312290701,1705749032653,-12303.42922454,0.00025111,2]
[312290703,1705749032662,-704.84311231,0.00025113,2]
[312290705,1705749032674,-1100.0,0.00025113,2]
[312290707,1705749032685,-849.08324174,0.00025113,2]
[312290708,1705749038249,-1501.34216016,0.00025113,2]
[312290709,1705749038590,-4989.24,0.00025113,2]
[312290710,1705749038601,-8034.32709089,0.00025113,2]
[312290711,1705749038610,-7995.81083996,0.00025113,2]
[312290712,1705749038622,-15016.443398,0.00025113,2]
[312290805,1705749046543,-1872.255,0.00025113,2]
[312290811,1705749128640,500.0,0.00018668,2]
[312290813,1705749174512,500.0,0.00018659,2]
[312290814,1705749446578,160.0,0.00018695,2]
[312290815,1705749528068,16000.0,0.00018695,2]
[312290817,1705749797778,300.91,0.00021581,2]
[312290818,1705749903751,-2200.0,0.00021911,2]
[312290819,1705749911357,-991.74123019,0.00021911,2]
[312290820,1705749911378,-1041.72732894,0.00021912,2]
[312290821,1705749911397,-166.53144087,0.00021913,2]
[312290822,1705749921340,-1000.0,0.00021913,2]
[312290827,1705750008279,-1250.0,0.00021999,2]
[312290828,1705750044469,-1250.0,0.00021999,2]
[312290829,1705750049888,-691.74123019,0.00021999,2]
[312290830,1705750049909,-558.25876981,0.00021999,2]
[312290831,1705750057288,-483.46855913,0.00021999,2]
[312290832,1705750057310,-1250.0,0.00022,3]
[312290839,1705750139576,160.0,0.00018695,2]
[312290840,1705750225975,5121.48461058,0.00018695,2]
[312290841,1705750226009,10000.0,0.00018695,2]
[312290842,1705750226037,878.51538942,0.00018695,2]
[312290846,1705750231413,-265.25084561,0.00022256,2]
[312290847,1705750231425,-568.82257769,0.00022256,2]
[312290848,1705750231451,-319.91350895,0.00022256,2]
[312290849,1705750231464,-547.63059867,0.00022256,2]
[312290850,1705750231474,-941.41772909,0.00023181,2]
[312290851,1705750231483,-715.89,0.00023182,2]
[312290852,1705750231493,-203.90724708,0.00023183,2]
[312290853,1705750231502,-552.85442604,0.00023185,2]
[312290854,1705750231514,-162.59557396,0.00023185,2]
[312290855,1705750231523,-716.63,0.00023185,2]
[312290856,1705750231532,-728.4,0.00023185,2]
[312290857,1705750231542,-1010.11523253,0.00023185,2]
[312290858,1705750231553,-622.71952594,0.00023185,2]
[312290859,1705750231572,-37520.55243462,0.00023185,2]
[312290860,1705750231584,-10846.61280691,0.00023185,2]
[312290861,1705750231594,-164.58349255,0.00023186,2]
[312290862,1705750231603,-211.11,0.00023215,2]
[312290863,1705750231613,-1000.0,0.00023215,2]
[312290864,1705750231622,-732.4,0.00023286,2]
[312290865,1705750231631,-1243.51,0.00023295,2]
[312290866,1705750231641,-404.33758055,0.00023391,2]
[312290867,1705750231651,-1054.68522475,0.00023392,2]
[312290868,1705750231660,-400.40313902,0.00023393,2]
[312290869,1705750231669,-619.42,0.00023393,2]
[312290870,1705750231679,-250.0,0.00023395,2]
[312290871,1705750231688,-260.61,0.00023548,2]
[312290872,1705750231697,-212.72,0.00023558,2]
[312290873,1705750231706,-442.78,0.0002358,2]
[312290874,1705750231715,-300.91,0.00023845,2]
[312290875,1705750231724,-729.06,0.00023846,2]
[312290876,1705750231734,-728.23,0.00023847,2]
[312290877,1705750231743,-499.99,0.00023847,2]
[312290878,1705750231752,-3242.03,0.00023847,2]
[312290880,1705750231762,-150.99,0.00023847,2]
[312290881,1705750231771,-715.52,0.00023848,2]
[312290883,1705750231781,-722.9,0.00023849,2]
[312290885,1705750231790,-733.83,0.0002385,2]
[312290887,1705750231799,-717.35,0.0002385,2]
[312290889,1705750231808,-734.95,0.00023852,2]
[312290891,1705750231817,-721.0,0.00023853,2]
[312290892,1705750231826,-736.44,0.00023853,2]
[312290893,1705750231835,-1674.64106912,0.00023854,2]
[312290894,1705750231846,-1300.0,0.00024,3]
[312290895,1705750231856,-1243.51,0.00024156,2]
[312290896,1705750231866,-12303.42922454,0.000245,2]
[312290897,1705750231877,-206.0,0.00024527,2]
[312290898,1705750231886,-157.8,0.00024604,2]
[312290899,1705750231895,-730.47,0.00024624,2]
[312290900,1705750231904,-247.7359896,0.00024625,3]
[312290901,1705750231913,-19512.11886475,0.00024625,3]
[312290902,1705750231923,-4829.24941903,0.00024625,3]
[312290903,1705750231932,-1195.23923121,0.00024625,3]
[312290904,1705750231941,-250.0,0.00024658,2]
[312290905,1705750231950,-20305.0,0.000249,2]
[312290906,1705750231959,-12567.4866552,0.000249,4]
[312290907,1705750231969,-2778.254,0.00024912,2]
[312290908,1705750231978,-731.65,0.0002499,2]
[312290909,1705750231987,-1775.1878692,0.0002501,2]
[312290910,1705750231996,-773.7277204,0.00025011,2]
[312290911,1705750232008,-759.0122796,0.00025011,2]
[312290912,1705750232017,-500.0,0.00025011,2]
[312290913,1705750232026,-500.0,0.00025011,2]
[312290914,1705750232035,-593.19,0.00025011,2]
[312290915,1705750232044,-500.0,0.00025011,2]
[312290916,1705750232053,-500.0,0.00025011,2]
[312290917,1705750232062,-500.0,0.00025011,2]
[312290918,1705750232071,-2966.66,0.00025011,2]
[312290919,1705750232081,-500.0,0.00025011,2]
[312290920,1705750232089,-500.0,0.00025011,2]
[312290921,1705750232099,-178.64671778,0.00025011,2]
[312290922,1705750232109,-500.0,0.00025011,2]
[312290923,1705750232118,-500.0,0.00025011,2]
[312290924,1705750232127,-500.0,0.00025011,2]
[312290925,1705750232136,-500.0,0.00025011,2]
[312290926,1705750232146,-500.0,0.00025011,2]
[312290927,1705750232156,-634.96,0.00025011,2]
[312290928,1705750232165,-500.0,0.00025011,2]
[312290929,1705750232174,-500.0,0.00025011,2]
[312290930,1705750232184,-1205.29,0.00025011,2]
[312290931,1705750232193,-672.22128444,0.00025011,2]
[312290932,1705750232205,-19.87871556,0.00025011,2]
[312290933,1705750232214,-417.92046392,0.00025011,2]
[312290934,1705750232226,-1028.73953608,0.00025011,2]
[312290935,1705750232235,-500.0,0.00025011,2]
[312290936,1705750232244,-230.53424156,0.00025011,2]
[312290937,1705750232260,-269.46575844,0.00025011,2]
[312290938,1705750232270,-569.67,0.00025011,2]
[312290939,1705750232283,-500.0,0.00025011,2]
[312290940,1705750232293,-500.0,0.00025011,2]
[312290941,1705750232302,-500.0,0.00025011,2]
[312290942,1705750232312,-3373.02,0.00025011,2]
[312290943,1705750232321,-18508.34893339,0.00025012,2]
[312290944,1705750232334,-2166.39622658,0.00025012,2]
[312290945,1705750232345,-390.87776714,0.00025012,2]
[312290946,1705750232370,-6113.48089981,0.00025012,2]
[312290947,1705750232412,-858.16390953,0.00025012,2]
[312290948,1705750232423,-2742.301515,0.00025012,2]
[312290949,1705750237415,-294.11,0.00022475,2]
[312290950,1705750237425,-500.0,0.00025011,2]
[312290951,1705750237434,-500.0,0.00025011,2]
[312290952,1705750237444,-17963.44958767,0.00025012,2]
[312290953,1705750237457,-6000.00036963,0.00025012,2]
[312290954,1705750237472,-557.77191776,0.00025012,2]
[312290955,1705750237485,-634.39719167,0.00025012,2]
[312290956,1705750237527,-363.48635591,0.00025012,2]
[312290957,1705750237539,-769.22313,0.00025012,2]
[312290958,1705750237637,-294.11,0.00024739,2]
[312290959,1705750237647,-15749.12249591,0.00025012,2]
[312290960,1705750237656,-151.0,0.00025012,7]
[312290961,1705750237665,-990.0,0.00025012,7]
[312290962,1705750237675,-990.0,0.00025012,7]
[312290963,1705750237684,-324.570853,0.00025012,7]
[312290964,1705750237693,-180.861334,0.00025012,7]
[312290965,1705750237703,-151.0,0.00025012,7]
[312290966,1705750237712,-500.0,0.00025012,2]
[312290967,1705750237722,-300.0,0.00025012,2]
[312290968,1705750237731,-500.0,0.00025012,2]
[312290969,1705750237741,-500.0,0.00025012,2]
[312290970,1705750237762,-500.0,0.00025012,2]
[312290971,1705750237772,-500.0,0.00025012,2]
[312290972,1705750237782,-500.0,0.00025012,2]
[312290973,1705750237792,-500.0,0.00025012,2]
[312290974,1705750237802,-500.0,0.00025012,2]
[312290975,1705750237811,-500.0,0.00025012,2]
[312290976,1705750237821,-500.0,0.00025012,2]
[312290977,1705750237831,-500.0,0.00025012,2]
[312290978,1705750237840,-500.0,0.00025012,2]
[312290979,1705750237850,-500.0,0.00025012,2]
[312290980,1705750237859,-500.0,0.00025012,2]
[312290981,1705750237870,-500.0,0.00025012,2]
[312290982,1705750237880,-628.12,0.00025012,2]
[312290983,1705750237890,-654.75,0.00025012,2]
[312290984,1705750237900,-500.0,0.00025012,2]
[312290985,1705750237909,-500.0,0.00025012,2]
[312290986,1705750237919,-500.0,0.00025012,2]
[312290987,1705750237929,-500.0,0.00025012,2]
[312290988,1705750237938,-500.0,0.00025012,2]
[312290989,1705750237947,-433.31514136,0.00025012,2]
[312290990,1705750237957,-500.0,0.00025012,2]
[312290991,1705750237966,-500.0,0.00025012,2]
[312290992,1705750238183,-500.0,0.00025012,2]
[312290993,1705750238211,-500.0,0.00025012,2]
[312290994,1705750238221,-500.0,0.00025012,2]
[312290995,1705750238230,-500.0,0.00025012,2]
[312290996,1705750238239,-803.61,0.00025012,2]
[312290997,1705750238249,-1243.51,0.00025018,2]
[312290998,1705750238258,-150.0,0.00025096,2]
[312290999,1705750238268,-155.37313795,0.0002511,2]
[312291000,1705750238278,-500.0,0.0002511,2]
[312291001,1705750238292,-500.0,0.0002511,2]
[312291002,1705750238301,-1111.79,0.0002511,2]
[312291003,1705750238310,-500.0,0.0002511,2]
[312291004,1705750238320,-500.0,0.0002511,2]